bitfinex-derivatives/quotes_SOLF0:USTF0_20250929
["timestamp","ask_amount","ask_price","bid_price","bid_amount"]
[1759121293422,11.7077,210.32,210.24,127.39323455]
[1759121293618,11.7077,210.32,210.24,12.25323455]
[1759121293823,11.7077,210.32,210.24,127.39323455]
[1759121294626,11.7077,210.32,210.24,12.25323455]
[1759121294821,7.59,210.31,210.24,127.39323455]
[1759121295219,7.59,210.31,210.24,12.25323455]
[1759121295526,66.5351,210.34,210.23,123.11413455]
[1759121295724,68.70525778,210.34,210.23,123.11413455]
[1759121296021,7.59,210.33,210.23,7.97413455]
[1759121296222,68.70525778,210.34,210.23,123.11413455]
[1759121296423,7.59,210.33,210.23,123.11413455]
[1759121296624,11.8681,210.3,210.23,123.11413455]
[1759121297125,11.8681,210.3,210.23,7.97413455]
[1759121297326,11.8681,210.3,210.24,115.14]
[1759121298427,11.8681,210.3,210.23,12.25343455]
[1759121298627,11.8681,210.3,210.23,127.39343455]
[1759121301024,66.5415,210.32,210.22,182.52445486]
[1759121301226,66.5415,210.32,210.22,297.66445486]
[1759121301424,7.59,210.31,210.22,297.66445486]
[1759121301625,66.5415,210.32,210.22,297.66445486]
[1759121301930,7.59,210.28,210.22,182.52445486]
[1759121302229,7.59,210.28,210.22,115.14]
[1759121302425,66.5415,210.32,210.21,7.97413455]
[1759121302635,7.59,210.31,210.21,7.97413455]
[1759121302833,7.59,210.31,210.18,4.2803]
[1759121302834,7.59,210.3,210.2,7.97413455]
[1759121303125,66.5464,210.31,210.2,32.13413455]
[1759121303324,7.59,210.3,210.2,32.13413455]
[1759121303719,11.869,210.26,210.2,32.13413455]
[1759121303926,11.869,210.26,210.2,7.97413455]
[1759121304127,11.869,210.26,210.2,123.11413455]
[1759121304633,4.2792,210.25,210.2,123.11413455]
[1759121304831,11.9992,210.25,210.2,115.14]
[1759121305627,4.2792,210.25,210.2,115.14]
[1759121306033,11.9992,210.25,210.2,115.14]
[1759121306234,7.72,210.24,210.2,115.14]
[1759121306730,11.9994,210.24,210.18,7.97413455]
[1759121306930,7.72,210.23,210.19,115.14]
[1759121307325,7.72,210.22,210.16,7.97413455]
[1759121307529,66.5611,210.26,210.17,115.14]
[1759121308531,7.72,210.25,210.17,115.14]
[1759121308734,12.0,210.21,210.17,115.14]
[1759121309130,66.5611,210.26,210.13,22.2359364]
[1759121309131,74.2928,210.22,210.13,22.2359364]
[1759121309336,7.72,210.21,210.13,14.26180185]
[1759121309534,7.72,210.21,210.13,76.08]
[1759121309841,7.72,210.21,210.13,115.16]
[1759121310131,7.72,210.21,210.13,129.25848435]
[1759121310338,7.72,210.17,210.13,129.25848435]
[1759121310527,7.72,210.17,210.13,14.09848435]
[1759121310730,4.2806,210.18,210.12,115.98791107]
[1759121310937,12.0006,210.18,210.12,115.98791107]
[1759121312740,4.2809,210.16,210.12,115.98791107]
[1759121312940,12.0009,210.16,210.12,115.16]
[1759121314743,12.0009,210.16,210.12,129.5160394]
[1759121316242,4.2809,210.16,210.12,129.5160394]
[1759121318748,12.0009,210.16,210.12,129.5160394]
[1759121319845,7.72,210.15,210.12,115.16]
[1759121320042,12.0009,210.16,210.12,115.16]
[1759121320541,12.0009,210.16,210.12,115.2]
[1759121324146,12.0009,210.16,210.05,4.2831]
[1759121324344,12.0009,210.16,210.06,115.2]
[1759121324536,4.2812,210.15,210.06,115.2]
[1759121326146,4.2815,210.14,210.06,115.2]
[1759121326345,7.72,210.14,210.05,0.8282559]
[1759121326546,7.72,210.14,210.06,115.22]
[1759121327142,4.2817,210.12,210.06,115.22]
[1759121327542,74.3193,210.14,210.05,0.8282559]
[1759121327740,7.72,210.13,210.05,116.0482559]
[1759121327941,7.72,210.09,210.05,115.22]
[1759121329546,12.0025,210.09,210.04,115.22]
[1759121330245,12.0025,210.09,210.04,129.33739025]
[1759121331448,4.2827,210.08,210.04,14.11739025]
[1759121331648,12.0027,210.08,210.04,115.22]
[1759121334650,4.2827,210.08,210.04,115.22]
[1759121334852,2.17015778,210.15,210.04,129.83565205]
[1759121335151,7.3,210.14,210.04,129.83565205]
[1759121335451,4.2823,210.1,210.04,129.83565205]
[1759121342050,66.5987,210.14,210.04,129.83565205]
[1759121342254,7.3,210.11,210.04,129.83565205]
[1759121342449,66.6046,210.12,210.04,129.83565205]
[1759121342658,4.2829,210.07,210.04,129.83565205]
[1759121342949,7.3,210.07,210.04,129.83565205]
[1759121343145,4.283,210.06,210.0,273.08253253]
[1759121343349,4.283,210.06,210.01,115.24]
[1759121343556,11.583,210.06,210.01,115.24]
[1759121344357,11.583,210.06,210.0,273.08253253]
[1759121344656,7.3,210.06,210.01,115.24]
[1759121344855,11.5832,210.05,210.01,115.24]
[1759121345050,7.3,210.05,210.01,115.24]
[1759121345361,7.3,210.05,210.0,115.24]
[1759121345658,7.3,210.05,210.0,129.54855641]
[1759121346550,4.2836,210.03,210.0,115.24]
[1759121346755,11.5836,210.03,209.99,115.26]
[1759121347366,4.2836,210.03,209.99,115.26]
[1759121352066,4.2831,210.05,209.99,115.26]
[1759121353861,7.3,210.06,209.99,115.26]
[1759121354065,4.2827,210.08,210.0,1.39240184]
[1759121354368,4.2827,210.08,209.99,116.65240184]
[1759121355264,4.2827,210.08,209.99,117.48091409]
[1759121355566,4.2827,210.08,209.99,121.76501409]
[1759121359172,4.2827,210.08,209.99,129.73914864]
[1759121360170,11.7027,210.08,209.99,129.73914864]
[1759121362474,4.2829,210.07,209.99,129.73914864]
[1759121365176,4.2829,210.07,210.0,7.97413455]
[1759121365875,7.42,210.08,210.0,7.97413455]
[1759121366076,7.42,210.08,210.01,9.36653639]
[1759121366274,8.77240184,210.11,210.01,9.36653639]
[1759121366574,11.6614,210.14,210.05,9.36653639]
[1759121366776,11.6614,210.14,210.06,123.23413455]
[1759121367166,11.6614,210.14,210.07,7.97413455]
[1759121367365,11.6614,210.14,210.06,123.23413455]
[1759121367576,11.6614,210.14,210.06,127.51683455]
[1759121368168,11.6614,210.14,210.07,7.97413455]
[1759121368376,11.6614,210.14,210.07,9.36653639]
[1759121368677,4.2809,210.16,210.07,13.64903639]
[1759121369380,7.38,210.15,210.07,13.64903639]
[1759121371979,7.38,210.15,210.08,7.97413455]
[1759121373282,7.38,210.15,210.07,13.64903639]
[1759121381393,7.38,210.15,210.07,5.67490184]
[1759121382591,7.38,210.15,210.08,4.2824]
[1759121387897,7.38,210.15,210.08,119.5024]
[1759121388297,1.39240184,210.17,210.09,1.39240184]
[1759121388499,7.38,210.18,210.11,1.39240184]
[1759121388698,1.39240184,210.21,210.13,1.39240184]
[1759121388699,7.38,210.21,210.13,1.39240184]
[1759121388903,7.38,210.21,210.14,115.22]
[1759121389095,1.39240184,210.23,210.16,4.2807]
[1759121389297,7.38,210.22,210.16,4.2807]
[1759121391299,1.39240184,210.19,210.1,7.97413455]
[1759121391502,7.38,210.18,210.08,124.58653639]
[1759121391805,66.5672,210.24,210.08,116.61240184]
[1759121391806,7.38,210.16,210.08,116.61240184]
[1759121392304,1.39240184,210.15,210.07,7.97413455]
[1759121392504,7.38,210.14,210.08,115.2]
[1759121393605,7.38,210.14,210.08,119.4824]
[1759121394301,7.38,210.14,210.09,4.2821]
[1759121394509,7.38,210.14,210.09,119.4821]
[1759121394904,7.58,210.17,210.09,119.4821]
[1759121395104,7.58,210.17,210.1,115.2]
[1759121398812,7.58,210.17,210.1,119.4819]
[1759121399012,7.58,210.17,210.11,115.2]
[1759121399202,7.58,210.17,210.09,1.39240184]
[1759121399402,5.67250184,210.2,210.09,1.39240184]
[1759121399602,7.58,210.19,210.1,87.1]
[1759121399813,7.58,210.19,210.11,115.2]
[1759121400617,8.97240184,210.18,210.11,119.4817]
[1759121401116,8.97240184,210.18,210.11,4.2817]
[1759121401315,8.97240184,210.18,210.12,91.34]
[1759121402612,8.97240184,210.18,210.11,4.2817]
[1759121402818,8.97240184,210.18,210.12,115.2]
[1759121403016,8.97240184,210.18,210.12,91.32]
[1759121403316,8.97240184,210.18,210.11,4.2817]
[1759121403721,8.97240184,210.18,210.12,91.32]
[1759121404221,8.97240184,210.18,210.11,4.2817]
[1759121404428,8.97240184,210.18,210.12,115.2]
[1759121405120,8.97240184,210.18,210.11,119.4817]
[1759121406110,8.97240184,210.18,210.12,115.2]
[1759121410224,8.97240184,210.18,210.11,12.25583455]
[1759121410522,7.58,210.18,210.12,115.2]
[1759121411425,7.58,210.18,210.12,123.17413455]
[1759121412223,7.58,210.18,210.12,115.2]
[1759121413527,7.58,210.18,210.12,123.17413455]
[1759121415130,7.58,210.18,210.12,127.45563455]
[1759121417531,7.58,210.18,210.13,4.2813]
[1759121419135,4.2804,210.19,210.13,4.2813]
[1759121419335,12.2704,210.19,210.13,4.2813]
[1759121420237,12.2704,210.19,210.12,123.17413455]
[1759121421339,12.2704,210.19,210.12,127.45563455]
[1759121426946,12.2704,210.19,210.13,4.2813]
[1759121431254,12.2704,210.19,210.13,12.25543455]
[1759121436252,12.2704,210.19,210.14,7.97413455]
[1759121436453,4.2804,210.19,210.14,7.97413455]
[1759121436655,7.36,210.18,210.14,7.97413455]
[1759121436848,4.2804,210.19,210.14,7.97413455]
[1759121437043,7.36,210.18,210.14,7.97413455]
[1759121437248,7.36,210.18,210.13,7.97413455]
[1759121438652,4.2804,210.19,210.13,7.97413455]
[1759121438850,7.36,210.18,210.13,7.97413455]
[1759121439352,4.2804,210.19,210.13,7.97413455]
[1759121439751,7.36,210.17,210.13,7.97413455]
[1759121439951,4.2806,210.18,210.13,115.16]
[1759121440151,7.36,210.17,210.13,115.16]
[1759121440345,4.2806,210.18,210.13,123.13413455]
[1759121440755,7.36,210.17,210.13,123.13413455]
[1759121440948,4.2806,210.18,210.13,123.13413455]
[1759121441144,4.2806,210.18,210.13,7.97413455]
[1759121441548,7.36,210.17,210.13,7.97413455]
[1759121441846,4.2806,210.18,210.13,7.97413455]
[1759121442745,7.36,210.17,210.13,7.97413455]
[1759121443047,7.36,210.17,210.12,7.97413455]
[1759121443253,4.2806,210.18,210.12,123.13413455]
[1759121443848,7.36,210.17,210.12,123.13413455]
[1759121444054,4.2806,210.18,210.12,123.13413455]
[1759121444355,7.36,210.17,210.12,123.13413455]
[1759121445254,4.2806,210.18,210.12,7.97413455]
[1759121446048,7.36,210.17,210.13,7.97413455]
[1759121446554,4.2806,210.18,210.13,7.97413455]
[1759121447056,7.36,210.17,210.13,7.97413455]
[1759121447449,4.2806,210.18,210.12,7.97413455]
[1759121448155,7.36,210.17,210.12,7.97413455]
[1759121448355,4.2806,210.18,210.12,7.97413455]
[1759121448559,11.6406,210.18,210.12,7.97413455]
[1759121449960,7.36,210.17,210.13,7.97413455]
[1759121450258,4.2806,210.18,210.12,7.97413455]
[1759121450855,7.36,210.17,210.12,7.97413455]
[1759121451060,4.2806,210.18,210.12,7.97413455]
[1759121451854,4.2808,210.17,210.12,7.97413455]
[1759121452059,7.36,210.2,210.12,7.97413455]
[1759121452261,9.5327534,210.2,210.12,7.97413455]
[1759121452857,9.5327534,210.2,210.11,7.97413455]
[1759121453662,7.36,210.15,210.11,7.97413455]
[1759121453864,7.94,210.15,210.11,7.97413455]
[1759121454460,4.281,210.16,210.11,7.97413455]
[1759121454660,7.94,210.15,210.11,7.97413455]
[1759121455053,4.281,210.16,210.11,7.97413455]
[1759121456164,7.94,210.15,210.09,123.13413455]
[1759121460362,7.94,210.15,210.09,7.97413455]
[1759121461268,7.94,210.15,210.08,127.41653455]
[1759121463469,12.2212,210.15,210.08,127.41653455]
[1759121467370,4.2814,210.14,210.08,123.13413455]
[1759121467571,7.94,210.13,210.08,123.13413455]
[1759121467765,4.2814,210.14,210.08,123.13413455]
[1759121468168,12.2214,210.14,210.08,123.13413455]
[1759121468369,12.2214,210.14,210.08,7.97413455]
[1759121468569,12.2214,210.14,210.08,119.05413455]
[1759121470773,12.2214,210.14,210.08,115.3623]
[1759121474176,80.54,210.21,210.08,111.08]
[1759121474385,1.39098696,210.19,210.1,1.39098696]
[1759121474677,7.26,210.18,210.1,116.55098696]
[1759121474875,11.5405,210.18,210.1,116.53098696]
[1759121475078,11.5405,210.18,210.1,1.39098696]
[1759121475379,7.26,210.18,210.1,54.81098696]
[1759121475978,7.26,210.18,210.1,105.55098696]
[1759121476378,7.26,210.16,210.1,104.16]
[1759121478877,7.26,210.16,210.09,4.2823]
[1759121483782,11.541,210.16,210.09,7.97413455]
[1759121483980,7.4,210.15,210.08,9.36512151]
[1759121484174,4.281,210.16,210.08,9.36512151]
[1759121484379,7.4,210.15,210.08,9.36512151]
[1759121488287,11.6812,210.15,210.08,9.36512151]
[1759121489088,7.4,210.14,210.08,7.97413455]
[1759121489287,7.4,210.14,210.07,7.97413455]
[1759121491782,7.4,210.14,210.09,1.39098696]
[1759121491988,4.2812,210.15,210.09,1.39098696]
[1759121492183,7.4,210.14,210.09,1.39098696]
[1759121492588,4.2812,210.15,210.08,7.97413455]
[1759121492788,7.4,210.14,210.08,7.97413455]
[1759121499997,7.4,210.14,210.08,12.25653455]
[1759121500194,7.4,210.19,210.12,7.97413455]
[1759121500400,7.4,210.19,210.12,9.36512151]
[1759121501401,7.4,210.19,210.12,1.39098696]
[1759121501603,7.4,210.19,210.13,4.2813]
[1759121502997,1.39098696,210.22,210.14,1.39098696]
[1759121503303,7.4,210.21,210.14,1.39098696]
[1759121503599,7.4,210.21,210.16,1.39098696]
[1759121504705,7.4,210.21,210.16,5.67168696]
[1759121506306,7.4,210.22,210.16,5.67168696]
[1759121506501,7.4,210.2,210.12,1.39098696]
[1759121506902,8.79098696,210.2,210.12,1.39098696]
[1759121507607,8.79098696,210.2,210.12,5.67258696]
[1759121511312,7.4,210.2,210.12,5.67258696]
[1759121511511,7.4,210.2,210.13,4.2813]
[1759121511812,7.4,210.2,210.14,1.39098696]
[1759121515216,7.4,210.2,210.14,5.67208696]
[1759121518716,7.4,210.2,210.14,4.2811]
[1759121520719,7.4,210.2,210.14,119.3611]
[1759121521611,7.4,210.2,210.14,4.2811]
[1759121521810,7.4,210.2,210.14,85.3811]
[1759121523821,7.4,210.2,210.14,4.2811]
[1759121524022,7.4,210.2,210.14,119.3611]
[1759121524926,7.4,210.2,210.14,4.2811]
[1759121525125,7.4,210.2,210.14,119.3611]
[1759121526521,7.4,210.2,210.14,115.08]
[1759121526821,7.32,210.21,210.11,66.6068]
[1759121527022,7.32,210.25,210.2,4.2799]
[1759121527326,0.91512813,210.28,210.2,4.2799]
[1759121527327,7.32,210.26,210.2,4.2799]
[1759121527726,7.32,210.26,210.2,39.5399]
[1759121527922,7.32,210.26,210.21,4.2797]
[1759121528126,8.71098696,210.27,210.21,4.2797]
[1759121528321,7.32,210.27,210.21,76.2797]
[1759121528834,7.32,210.27,210.21,119.3397]
[1759121529420,7.32,210.27,210.2,1.39098696]
[1759121529923,7.32,210.27,210.21,115.06]
[1759121530828,1.39098696,210.29,210.23,4.2793]
[1759121531428,7.32,210.28,210.23,4.2793]
[1759121532430,1.39098696,210.29,210.23,4.2793]
[1759121532731,7.65,210.28,210.21,115.06]
[1759121533033,7.65,210.24,210.16,1.39098696]
[1759121533221,7.65,210.24,210.17,115.06]
[1759121533628,7.65,210.24,210.16,1.39098696]
[1759121533824,7.65,210.24,210.18,115.06]
[1759121534225,7.65,210.24,210.16,1.39098696]
[1759121534421,7.65,210.24,210.18,115.06]
[1759121534626,7.65,210.24,210.18,119.3404]
[1759121534929,7.65,210.24,210.18,4.2804]
[1759121535335,7.65,210.24,210.18,109.1404]
[1759121536929,7.65,210.24,210.18,119.3204]
[1759121537536,7.65,210.24,210.18,4.2804]
[1759121538231,7.65,210.24,210.18,119.3204]
[1759121540833,7.65,210.24,210.18,4.2804]
[1759121541132,7.65,210.25,210.18,4.2804]
[1759121541335,7.65,210.25,210.18,119.3204]
[1759121541838,7.65,210.25,210.18,4.2804]
[1759121542036,7.65,210.25,210.19,115.04]
[1759121544639,7.65,210.25,210.18,4.2804]
[1759121544838,7.65,210.25,210.19,115.04]
[1759121545339,7.65,210.25,210.19,119.3201]
[1759121545538,7.65,210.25,210.19,4.2801]
[1759121545740,7.65,210.25,210.19,119.3201]
[1759121547535,11.9291,210.25,210.19,119.3201]
[1759121547840,11.9291,210.25,210.19,115.04]
[1759121553241,7.65,210.25,210.14,68.76861413]
[1759121553543,7.65,210.25,210.15,115.04]
[1759121553740,7.65,210.25,210.14,68.76861413]
[1759121554241,7.65,210.25,210.15,115.04]
[1759121554442,7.65,210.25,210.18,4.2803]
[1759121555143,7.65,210.25,210.19,115.04]
[1759121555946,7.65,210.25,210.18,4.2803]
[1759121556146,7.65,210.25,210.19,115.04]
[1759121556342,11.579,210.26,210.2,115.04]
[1759121557247,11.579,210.26,210.18,4.2803]
[1759121557542,11.579,210.26,210.19,115.04]
[1759121557849,11.579,210.26,210.2,115.02]
[1759121559749,7.3,210.26,210.2,4.2799]
[1759121560047,4.2785,210.28,210.2,119.2999]
[1759121560444,4.2785,210.28,210.21,115.02]
[1759121560642,7.3,210.29,210.21,115.02]
[1759121560843,7.3,210.26,210.2,4.2799]
[1759121561044,7.3,210.26,210.21,115.02]
[1759121561950,7.3,210.26,210.2,4.2799]
[1759121562140,7.3,210.26,210.21,115.02]
[1759121562746,7.3,210.26,210.21,129.23009789]
[1759121566858,7.3,210.26,210.21,14.21009789]
[1759121567059,7.3,210.26,210.22,115.02]
[1759121569253,2.17161413,210.29,210.21,14.53532895]
[1759121569459,7.3,210.27,210.16,152.88526849]
[1759121569655,2.17161413,210.29,210.17,82.78]
[1759121569853,4.2793,210.24,210.17,87.0605]
[1759121570059,4.2793,210.24,210.17,4.2805]
[1759121570249,4.2793,210.24,210.18,115.02]
[1759121570959,4.2793,210.24,210.18,129.52173779]
[1759121571260,4.2793,210.24,210.18,14.50173779]
[1759121571561,11.5793,210.24,210.19,115.02]
[1759121572659,11.5793,210.24,210.17,4.2805]
[1759121572863,11.5793,210.24,210.2,115.02]
[1759121573360,11.5793,210.24,210.17,4.2805]
[1759121573660,11.5793,210.24,210.18,115.02]
[1759121573862,11.5793,210.24,210.17,4.2805]
[1759121574059,11.5793,210.24,210.18,115.02]
[1759121574263,4.2793,210.24,210.19,115.02]
[1759121574561,7.72,210.23,210.16,152.88526849]
[1759121574865,7.72,210.23,210.17,115.02]
[1759121575062,4.2793,210.24,210.18,115.02]
[1759121575264,11.9993,210.24,210.18,115.02]
[1759121577265,11.9993,210.24,210.18,129.41474021]
[1759121578264,7.72,210.22,210.18,129.41474021]
[1759121578465,7.72,210.24,210.13,4.2815]
[1759121578669,7.72,210.24,210.14,15.56]
[1759121578866,4.28,210.2,210.14,15.56]
[1759121579158,12.0,210.2,210.14,15.56]
[1759121579557,4.28,210.2,210.15,115.02]
[1759121579766,7.72,210.19,210.15,115.02]
[1759121582460,4.2797,210.22,210.13,18.26581503]
[1759121582660,4.2797,210.22,210.14,115.02]
[1759121582860,4.2797,210.22,210.15,115.02]
[1759121583363,4.2797,210.22,210.13,18.26581503]
[1759121583565,4.2797,210.22,210.14,115.02]
[1759121584164,4.2797,210.22,210.13,18.26581503]
[1759121584367,4.2797,210.22,210.14,115.02]
[1759121584659,7.72,210.23,210.14,115.02]
[1759121584861,4.2793,210.24,210.13,16.15592916]
[1759121585064,4.2793,210.24,210.14,115.02]
[1759121585262,4.2793,210.24,210.15,115.02]
[1759121585466,4.2793,210.24,210.16,115.02]
[1759121585763,11.9989,210.26,210.17,115.02]
[1759121586159,11.9989,210.26,210.19,4.2801]
[1759121586361,7.72,210.26,210.19,4.2801]
[1759121586553,4.2785,210.28,210.16,68.76281413]
[1759121586761,4.2785,210.28,210.2,115.02]
[1759121587064,4.2785,210.28,210.21,115.02]
[1759121587461,4.2785,210.28,210.16,68.76281413]
[1759121587663,4.2785,210.28,210.21,4.2798]
[1759121587864,4.2785,210.28,210.22,115.02]
[1759121588565,7.72,210.29,210.22,115.02]
[1759121591263,66.5482,210.3,210.16,64.17161413]
[1759121591465,7.72,210.27,210.13,14.45967742]
[1759121591664,7.72,210.27,210.1,10.6321794]
[1759121592169,7.53,210.27,210.1,10.6321794]
[1759121592368,7.53,210.27,210.13,11.48]
[1759121592570,11.8096,210.23,210.14,22.06]
[1759121592768,7.53,210.23,210.14,22.06]
[1759121593067,7.53,210.25,210.14,22.06]
[1759121593273,2.17161413,210.25,210.14,22.06]
[1759121593679,11.81,210.21,210.14,22.06]
[1759121593861,2.17161413,210.25,210.13,14.30901665]
[1759121593862,66.57,210.23,210.13,14.30901665]
[1759121594068,9.70161413,210.22,210.1,4.2819]
[1759121594267,2.17161413,210.22,210.12,115.0]
[1759121594473,7.53,210.21,210.12,115.0]
[1759121595673,4.2804,210.19,210.12,115.0]
[1759121595972,7.53,210.19,210.12,115.0]
[1759121596160,7.53,210.19,210.09,346.16]
[1759121596161,7.53,210.21,210.09,346.16]
[1759121596362,7.53,210.21,210.1,115.02]
[1759121596363,4.2808,210.17,210.1,115.02]
[1759121596572,11.8108,210.17,210.1,115.02]
[1759121596763,11.8108,210.17,210.09,360.75932714]
[1759121596964,4.2811,210.16,210.1,115.02]
[1759121598573,4.2811,210.16,210.09,362.15020407]
[1759121598975,4.2811,210.16,210.09,475.77932714]
[1759121599663,4.2811,210.16,210.09,360.75932714]
[1759121599868,4.2811,210.16,210.1,115.02]
[1759121600368,4.2811,210.16,210.09,360.75932714]
[1759121600569,4.2811,210.16,210.1,115.04]
[1759121600873,4.2811,210.16,210.09,360.75932714]
[1759121601074,4.2811,210.16,210.1,115.02]
[1759121601376,4.2811,210.16,210.09,360.75932714]
[1759121601571,4.2811,210.16,210.1,115.02]
[1759121602468,4.2811,210.16,210.09,362.15020407]
[1759121602673,4.2811,210.16,210.1,115.02]
[1759121605676,4.2811,210.16,210.11,115.04]
[1759121605975,11.8111,210.16,210.11,115.04]
[1759121606473,11.8111,210.16,210.09,1.39087693]
[1759121606677,11.8112,210.15,210.09,16.00019579]
[1759121606878,11.8112,210.15,210.1,51.36]
[1759121607077,4.2812,210.15,210.1,51.36]
[1759121608174,11.8112,210.15,210.1,51.36]
[1759121608783,11.8112,210.15,210.09,16.00019579]
[1759121608981,11.8112,210.15,210.1,55.78]
[1759121609281,7.53,210.14,210.09,16.00019579]
[1759121609478,7.53,210.14,210.09,14.60931886]
[1759121609479,11.8114,210.14,210.09,14.60931886]
[1759121609682,7.53,210.13,210.07,1.39087693]
[1759121609880,7.53,210.13,210.08,94.12]
[1759121610179,4.2816,210.13,210.08,94.12]
[1759121610375,7.53,210.13,210.06,0.82780275]
[1759121611684,11.812,210.11,210.06,0.82780275]
[1759121611883,4.282,210.11,210.06,0.82780275]
[1759121612180,11.812,210.11,210.06,0.82780275]
[1759121612885,7.53,210.1,210.06,0.82780275]
[1759121613086,7.53,210.1,210.06,15.34781702]
[1759121614187,4.282,210.11,210.06,15.34781702]
[1759121614384,7.53,210.09,210.02,1.39087693]
[1759121614588,7.53,210.09,210.01,0.82839392]
[1759121614885,7.53,210.07,210.01,0.82839392]
[1759121615092,7.53,210.07,210.01,15.02347366]
[1759121616290,5.67357693,210.08,210.01,0.82839392]
[1759121616291,4.2829,210.06,210.01,0.82839392]
[1759121616594,7.53,210.05,209.99,461.26]
[1759121616789,7.53,210.05,209.99,115.04]
[1759121617092,7.53,210.05,209.97,119.3646]
[1759121617395,7.53,210.05,209.98,4.2843]
[1759121617589,7.53,210.05,209.98,5.67517693]
[1759121617796,7.53,210.05,209.98,1.39087693]
[1759121618888,7.53,210.05,209.99,4.2842]
[1759121619791,7.53,210.05,209.99,18.27786636]
[1759121619991,7.53,210.05,209.99,4.2842]
[1759121620688,7.53,210.05,209.98,1.39087693]
[1759121620894,7.53,210.09,210.01,4.2839]
[1759121625894,7.53,210.07,210.01,4.2839]
[1759121626294,7.53,210.07,209.99,129.68205441]
[1759121626295,7.53,210.07,209.99,133.96635441]
[1759121626692,7.53,210.07,209.99,18.78635441]
[1759121628600,5.67357693,210.08,209.99,18.78635441]
[1759121628788,7.53,210.07,209.99,18.78635441]
[1759121628995,5.67357693,210.08,209.99,18.78635441]
[1759121629299,7.53,210.07,209.99,18.78635441]
[1759121630100,5.67357693,210.08,209.99,18.78635441]
[1759121631492,7.53,210.07,209.99,18.78635441]
[1759121631699,5.67357693,210.08,209.99,18.78635441]
[1759121632004,5.67357693,210.08,210.0,4.284]
[1759121632207,7.53,210.07,210.0,4.284]
[1759121633306,7.53,210.07,210.01,4.2838]
[1759121638810,7.53,210.07,210.02,4.2836]
[1759121639212,7.26,210.08,210.02,4.2836]
[1759121640726,7.26,210.11,210.02,1.39087693]
[1759121641016,7.26,210.11,210.04,1.39087693]
[1759121641310,4.2815,210.13,210.06,4.2828]
[1759121641515,7.26,210.12,210.06,4.2828]
[1759121642521,7.26,210.14,210.07,4.2825]
[1759121645125,8.65087693,210.14,210.07,4.2825]
[1759121650025,8.65087693,210.14,210.08,4.2823]
[1759121650721,8.65087693,210.17,210.1,4.282]
[1759121650927,8.65087693,210.17,210.1,1.39087693]
[1759121650928,7.26,210.17,210.1,1.39087693]
[1759121651727,8.65087693,210.17,210.1,4.282]
[1759121656429,12.93167693,210.17,210.1,4.282]
[1759121660233,11.5408,210.17,210.1,4.282]
[1759121664032,4.2808,210.17,210.11,4.2817]
[1759121664225,7.79,210.16,210.11,4.2817]
[1759121664425,4.2808,210.17,210.11,4.2817]
[1759121664926,7.79,210.16,210.07,115.14]
[1759121665125,7.79,210.16,210.07,115.06]
[1759121665524,7.79,210.16,210.06,2.1733354]
[1759121665730,7.79,210.16,210.1,4.282]
[1759121667529,7.79,210.16,210.11,4.2818]
[1759121667730,4.2808,210.17,210.11,4.2818]
[1759121668131,7.79,210.18,210.11,4.2818]